fUSD/lending_fUSD_20250120
["ID","MTS","AMOUNT","RATE_DAILY","PERIOD"]
[349687125,1737377441697,-500.0,0.00019178,2]
[349687126,1737377441706,-500.0,0.00019178,2]
[349687127,1737377441715,-500.0,0.00019178,2]
[349687128,1737377441725,-500.0,0.00019178,2]
[349687129,1737377441735,-500.0,0.00019178,2]
[349687130,1737377441746,-500.0,0.00019178,2]
[349687131,1737377441761,-500.0,0.00019178,2]
[349687132,1737377441771,-500.0,0.00019178,2]
[349687133,1737377441780,-500.0,0.00019178,2]
[349687134,1737377441790,-500.0,0.00019178,2]
[349687135,1737377441800,-500.0,0.00019178,2]
[349687136,1737377441810,-500.0,0.00019178,2]
[349687137,1737377441819,-500.0,0.00019178,2]
[349687138,1737377441829,-500.0,0.00019178,2]
[349687139,1737377441839,-500.0,0.00019178,2]
[349687140,1737377441848,-163.74284147,0.00019178,2]
[349687141,1737377441858,-500.0,0.00019178,2]
[349687142,1737377441869,-500.0,0.00019178,2]
[349687143,1737377441878,-500.0,0.00019178,2]
[349687144,1737377441888,-485.54284389,0.00019178,2]
[349687145,1737377441896,-500.0,0.00019178,2]
[349687146,1737377441906,-500.0,0.00019178,2]
[349687147,1737377441915,-1612.66,0.00019178,2]
[349687148,1737377441925,-500.0,0.00019178,2]
[349687149,1737377441934,-500.0,0.00019178,2]
[349687150,1737377441944,-500.0,0.00019178,2]
[349687151,1737377441954,-500.0,0.00019178,2]
[349687152,1737377441963,-500.0,0.00019178,2]
[349687153,1737377441972,-500.0,0.00019178,2]
[349687154,1737377441982,-500.0,0.00019178,2]
[349687155,1737377441992,-500.0,0.00019178,2]
[349687156,1737377442006,-536.54,0.00019178,2]
[349687157,1737377442019,-500.0,0.00019178,2]
[349687158,1737377442028,-3644.75,0.00019178,2]
[349687159,1737377442038,-500.0,0.00019178,2]
[349687160,1737377442047,-500.0,0.00019178,2]
[349687161,1737377442059,-510.70285684,0.00019178,2]
[349687162,1737377442068,-500.0,0.00019178,2]
[349687163,1737377442078,-500.0,0.00019178,2]
[349687164,1737377442087,-500.0,0.00019178,2]
[349687165,1737377442099,-500.0,0.00019178,2]
[349687166,1737377442109,-500.0,0.00019178,2]
[349687167,1737377442118,-500.0,0.00019178,2]
[349687168,1737377442128,-500.0,0.00019178,2]
[349687169,1737377442138,-500.0,0.00019178,2]
[349687170,1737377442148,-626.19,0.00019178,2]
[349687171,1737377442157,-500.0,0.00019178,2]
[349687172,1737377442167,-500.0,0.00019178,2]
[349687173,1737377442177,-756.469785,0.00019178,2]
[349687174,1737377442187,-500.0,0.00019178,2]
[349687175,1737377442197,-502.16226676,0.00019178,2]
[349687176,1737377442207,-500.0,0.00019178,2]
[349687177,1737377442216,-1134.53,0.00019178,2]
[349687178,1737377442226,-500.0,0.00019178,2]
[349687179,1737377442236,-500.0,0.00019178,2]
[349687180,1737377442245,-500.0,0.00019178,2]
[349687181,1737377442260,-500.0,0.00019178,2]
[349687182,1737377442270,-500.0,0.00019178,2]
[349687183,1737377442280,-500.0,0.00019178,2]
[349687184,1737377442290,-732.04,0.00019178,2]
[349687185,1737377442299,-338.23277611,0.00019178,2]
[349687186,1737377442308,-500.0,0.00019178,2]
[349687187,1737377442317,-500.0,0.00019178,2]
[349687188,1737377442326,-500.0,0.00019178,2]
[349687189,1737377442336,-500.0,0.00019178,2]
[349687190,1737377442346,-1092.62,0.00019178,2]
[349687191,1737377442356,-500.0,0.00019178,2]
[349687192,1737377442366,-923.97,0.00019178,2]
[349687193,1737377442375,-970.989995,0.00019178,2]
[349687194,1737377442385,-501.99565525,0.00019178,2]
[349687195,1737377442394,-500.0,0.00019178,2]
[349687196,1737377442403,-500.0,0.00019178,2]
[349687197,1737377442413,-500.0,0.00019178,2]
[349687198,1737377442423,-500.0,0.00019178,2]
[349687199,1737377442432,-1401.76,0.00019178,2]
[349687200,1737377442441,-500.0,0.00019178,2]
[349687201,1737377442451,-500.0,0.00019178,2]
[349687202,1737377442461,-159.95642,0.00019178,2]
[349687203,1737377442471,-500.0,0.00019178,2]
[349687204,1737377442481,-500.0,0.00019178,2]
[349687205,1737377442490,-2199.52,0.00019178,2]
[349687206,1737377442501,-500.0,0.00019178,2]
[349687207,1737377442510,-159.458686,0.00019178,2]
[349687208,1737377442519,-500.0,0.00019178,2]
[349687209,1737377442529,-500.0,0.00019178,2]
[349687210,1737377442539,-1107.27,0.00019178,2]
[349687212,1737377442549,-500.0,0.00019178,2]
[349687213,1737377442560,-500.0,0.00019178,2]
[349687214,1737377442569,-500.0,0.00019178,2]
[349687215,1737377442579,-500.0,0.00019178,2]
[349687216,1737377442589,-500.0,0.00019178,2]
[349687217,1737377442598,-500.0,0.00019178,2]
[349687218,1737377442608,-500.0,0.00019178,2]
[349687219,1737377442617,-500.0,0.00019178,2]
[349687220,1737377442626,-574.83,0.00019178,2]
[349687221,1737377442635,-500.0,0.00019178,2]
[349687222,1737377442644,-500.0,0.00019178,2]
[349687223,1737377442654,-500.0,0.00019178,2]
[349687224,1737377442664,-500.0,0.00019178,2]
[349687225,1737377442673,-500.0,0.00019178,2]
[349687226,1737377442683,-500.0,0.00019178,2]
[349687227,1737377442693,-500.0,0.00019178,2]
[349687228,1737377442704,-500.0,0.00019178,2]
[349687229,1737377442714,-500.0,0.00019178,2]
[349687230,1737377442724,-182.466381,0.00019178,2]
[349687231,1737377442734,-577.65477978,0.00019178,2]
[349687232,1737377442743,-500.0,0.00019178,2]
[349687233,1737377442755,-500.0,0.00019178,2]
[349687234,1737377442765,-952.22,0.00019178,2]
[349687235,1737377442774,-500.0,0.00019178,2]
[349687236,1737377442784,-500.0,0.00019178,2]
[349687237,1737377442794,-500.0,0.00019178,2]
[349687238,1737377442803,-500.0,0.00019178,2]
[349687239,1737377442812,-500.0,0.00019178,2]
[349687240,1737377442822,-500.0,0.00019178,2]
[349687241,1737377442831,-500.0,0.00019178,2]
[349687242,1737377442840,-3658.7,0.00019178,2]
[349687243,1737377442850,-500.0,0.00019178,2]
[349687244,1737377442859,-500.0,0.00019178,2]
[349687245,1737377442868,-542.18265497,0.00019178,2]
[349687246,1737377442878,-1103.21,0.00019178,2]
[349687247,1737377442887,-500.0,0.00019178,2]
[349687248,1737377442896,-500.0,0.00019178,2]
[349687249,1737377442906,-500.0,0.00019178,2]
[349687250,1737377442915,-500.0,0.00019178,2]
[349687251,1737377442924,-500.0,0.00019178,2]
[349687252,1737377442934,-500.0,0.00019178,2]
[349687253,1737377442943,-993.94,0.00019178,2]
[349687254,1737377442953,-500.0,0.00019178,2]
[349687255,1737377442962,-500.0,0.00019178,2]
[349687256,1737377442971,-639.92,0.00019178,2]
[349687257,1737377442981,-500.0,0.00019178,2]
[349687258,1737377442990,-1228.19,0.00019178,2]
[349687259,1737377443002,-200.0,0.00019178,2]
[349687260,1737377443015,-500.0,0.00019178,2]
[349687261,1737377443024,-1377.98,0.00019178,2]
[349687262,1737377443033,-500.0,0.00019178,2]
[349687263,1737377443043,-500.0,0.00019178,2]
[349687264,1737377443053,-500.0,0.00019178,2]
[349687265,1737377443063,-500.0,0.00019178,2]
[349687266,1737377443072,-500.0,0.00019178,2]
[349687267,1737377443081,-500.0,0.00019178,2]
[349687268,1737377443092,-1560.84,0.00019178,2]
[349687269,1737377443101,-500.0,0.00019178,2]
[349687270,1737377443111,-500.0,0.00019178,2]
[349687271,1737377443119,-500.0,0.00019178,2]
[349687272,1737377443130,-500.0,0.00019178,2]
[349687273,1737377443139,-500.0,0.00019178,2]
[349687274,1737377443148,-752.57,0.00019178,2]
[349687275,1737377443158,-1797.36,0.00019178,2]
[349687276,1737377443168,-500.0,0.00019178,2]
[349687277,1737377443177,-3077.66,0.00019178,2]
[349687278,1737377443187,-500.0,0.00019178,2]
[349687279,1737377443197,-876.3,0.00019178,2]
[349687280,1737377443206,-714.91,0.00019178,2]
[349687281,1737377443216,-500.0,0.00019178,2]
[349687282,1737377443225,-500.0,0.00019178,2]
[349687283,1737377443341,-500.0,0.00019178,2]
[349687284,1737377443355,-500.0,0.00019178,2]
[349687285,1737377443365,-876.98,0.00019178,2]
[349687286,1737377443375,-500.0,0.00019178,2]
[349687287,1737377443384,-2597.81,0.00019178,2]
[349687288,1737377443394,-1827.08,0.00019178,2]
[349687289,1737377443403,-1615.3,0.00019178,2]
[349687290,1737377443413,-500.0,0.00019178,2]
[349687291,1737377443423,-2483.31,0.00019178,2]
[349687292,1737377443432,-500.0,0.00019178,2]
[349687293,1737377443441,-500.0,0.00019178,2]
[349687294,1737377443451,-500.0,0.00019178,2]
[349687295,1737377443461,-500.0,0.00019178,2]
[349687296,1737377443471,-3105.24,0.00019178,2]
[349687297,1737377443480,-500.0,0.00019178,2]
[349687298,1737377443489,-500.0,0.00019178,2]
[349687299,1737377443499,-500.0,0.00019178,2]
[349687300,1737377443512,-500.0,0.00019178,2]
[349687301,1737377443522,-500.0,0.00019178,2]
[349687302,1737377443531,-1130.17,0.00019178,2]
[349687303,1737377443541,-502.05476563,0.00019178,2]
[349687304,1737377443551,-647.49,0.00019178,2]
[349687305,1737377443561,-1811.0,0.00019178,2]
[349687306,1737377443570,-3353.58,0.00019178,2]
[349687307,1737377443580,-623.13983154,0.00019178,2]
[349687308,1737377443589,-500.0,0.00019178,2]
[349687309,1737377443599,-1109.6,0.00019178,2]
[349687310,1737377443608,-570.96585938,0.00019178,2]
[349687311,1737377443618,-500.0,0.00019178,2]
[349687312,1737377443627,-500.0,0.00019178,2]
[349687313,1737377443637,-500.0,0.00019178,2]
[349687314,1737377443646,-500.0,0.00019178,2]
[349687315,1737377443656,-751.49,0.00019178,2]
[349687316,1737377443665,-944.91,0.00019178,2]
[349687317,1737377443674,-500.0,0.00019178,2]
[349687318,1737377443684,-500.0,0.00019178,2]
[349687319,1737377443693,-899.05,0.00019178,2]
[349687320,1737377443702,-500.0,0.00019178,2]
[349687321,1737377443712,-500.0,0.00019178,2]
[349687322,1737377443720,-500.0,0.00019178,2]
[349687323,1737377443730,-1086.25,0.00019178,2]
[349687324,1737377443739,-1871.8,0.00019178,2]
[349687325,1737377443749,-500.0,0.00019178,2]
[349687326,1737377443760,-500.0,0.00019178,2]
[349687327,1737377443770,-500.0,0.00019178,2]
[349687328,1737377443779,-2312.31,0.00019178,2]
[349687329,1737377443790,-500.0,0.00019178,2]
[349687330,1737377443799,-500.0,0.00019178,2]
[349687331,1737377443809,-500.0,0.00019178,2]
[349687332,1737377443818,-500.0,0.00019178,2]
[349687333,1737377443828,-500.0,0.00019178,2]
[349687334,1737377443838,-500.0,0.00019178,2]
[349687335,1737377443847,-1721.32,0.00019178,2]
[349687336,1737377443857,-3500.19,0.00019178,2]
[349687337,1737377443867,-500.0,0.00019178,2]
[349687338,1737377443876,-500.0,0.00019178,2]
[349687339,1737377443886,-1374.5,0.00019178,2]
[349687340,1737377443895,-500.0,0.00019178,2]
[349687341,1737377443905,-500.0,0.00019178,2]
[349687342,1737377443914,-1285.87,0.00019178,2]
[349687343,1737377443923,-1008.2,0.00019178,2]
[349687344,1737377443933,-508.17684468,0.00019178,2]
[349687345,1737377443943,-500.0,0.00019178,2]
[349687346,1737377443954,-462.57385728,0.00019178,2]
[349687347,1737377443963,-500.0,0.00019178,2]
[349687348,1737377443973,-500.0,0.00019178,2]
[349687349,1737377443982,-151.34589074,0.00019178,2]
[349687350,1737377443991,-500.0,0.00019178,2]
[349687351,1737377444002,-500.0,0.00019178,2]
[349687352,1737377444013,-500.0,0.00019178,2]
[349687353,1737377444024,-500.0,0.00019178,2]
[349687354,1737377444035,-500.0,0.00019178,2]
[349687355,1737377444045,-500.0,0.00019178,2]
[349687356,1737377444056,-502.89553674,0.00019178,2]
[349687357,1737377444065,-572.39,0.00019178,2]
[349687358,1737377444075,-1238.99,0.00019178,2]
[349687359,1737377444085,-500.0,0.00019178,2]
[349687360,1737377444095,-500.0,0.00019178,2]
[349687361,1737377444105,-5000.0,0.00019178,2]
[349687362,1737377444114,-500.0,0.00019178,2]
[349687363,1737377444124,-500.0,0.00019178,2]
[349687364,1737377444134,-501.36996233,0.00019178,2]
[349687365,1737377444144,-500.0,0.00019178,2]
[349687366,1737377444154,-500.0,0.00019178,2]
[349687367,1737377444163,-500.0,0.00019178,2]
[349687368,1737377444180,-500.0,0.00019178,2]
[349687369,1737377444189,-504.19935443,0.00019178,2]
[349687370,1737377444199,-500.0,0.00019178,2]
[349687371,1737377444208,-610.17509559,0.00019178,2]
[349687372,1737377444218,-4448.38,0.00019178,2]
[349687373,1737377444227,-500.0,0.00019178,2]
[349687374,1737377444236,-500.0,0.00019178,2]
[349687375,1737377444246,-159.39353145,0.00019178,2]
[349687376,1737377444258,-500.0,0.00019178,2]
[349687377,1737377444267,-500.0,0.00019178,2]
[349687378,1737377444277,-500.0,0.00019178,2]
[349687379,1737377444286,-500.0,0.00019178,2]
[349687380,1737377444296,-1222.11,0.00019178,2]
[349687381,1737377444305,-500.0,0.00019178,2]
[349687382,1737377444315,-936.38,0.00019178,2]
[349687383,1737377444325,-500.0,0.00019178,2]
[349687384,1737377444334,-500.0,0.00019178,2]
[349687385,1737377444344,-1024.64,0.00019178,2]
[349687386,1737377444353,-500.0,0.00019178,2]
[349687387,1737377444363,-500.0,0.00019178,2]
[349687388,1737377444372,-500.0,0.00019178,2]
[349687389,1737377444382,-4455.07,0.00019178,2]
[349687390,1737377444391,-502.40194906,0.00019178,2]
[349687391,1737377444402,-500.0,0.00019178,2]
[349687392,1737377444411,-634.84,0.00019178,2]
[349687393,1737377444420,-503.17882105,0.00019178,2]
[349687394,1737377444430,-500.0,0.00019178,2]
[349687395,1737377444439,-500.0,0.00019178,2]
[349687397,1737377444449,-500.0,0.00019178,2]
[349687399,1737377444458,-500.0,0.00019178,2]
[349687400,1737377444467,-500.0,0.00019178,2]
[349687401,1737377444477,-500.0,0.00019178,2]
[349687402,1737377444486,-500.0,0.00019178,2]
[349687403,1737377444496,-1718.2,0.00019178,2]
[349687405,1737377444508,-500.0,0.00019178,2]
[349687406,1737377444517,-500.0,0.00019178,2]
[349687407,1737377444526,-500.0,0.00019178,2]
[349687409,1737377444536,-500.0,0.00019178,2]
[349687411,1737377444545,-1517.42,0.00019178,2]
[349687413,1737377444555,-522.48895449,0.00019178,2]
[349687415,1737377444564,-500.0,0.00019178,2]
[349687417,1737377444574,-500.0,0.00019178,2]
[349687419,1737377444583,-500.0,0.00019178,2]
[349687420,1737377444593,-500.0,0.00019178,2]
[349687421,1737377444603,-500.0,0.00019178,2]
[349687422,1737377444613,-500.0,0.00019178,2]
[349687423,1737377444623,-500.0,0.00019178,2]
[349687424,1737377444633,-881.03,0.00019178,2]
[349687425,1737377444643,-500.0,0.00019178,2]
[349687426,1737377444652,-500.0,0.00019178,2]
[349687427,1737377444662,-500.0,0.00019178,2]
[349687428,1737377444671,-500.0,0.00019178,2]
[349687429,1737377444681,-500.0,0.00019178,2]
[349687430,1737377444691,-83730.28169986,0.00019178,2]
[349687431,1737377444701,-500.0,0.00019257,2]
[349687432,1737377444712,-500.0,0.00019257,2]
[349687433,1737377444721,-500.0,0.00019257,2]
[349687434,1737377444731,-500.0,0.00019257,2]
[349687435,1737377444740,-500.0,0.00019257,2]
[349687436,1737377444751,-500.0,0.00019257,2]
[349687437,1737377444763,-500.58910128,0.00019257,2]
[349687438,1737377444773,-500.0,0.00019257,2]
[349687439,1737377444783,-500.0,0.00019257,2]
[349687440,1737377444792,-500.0,0.00019257,2]
[349687441,1737377444802,-500.0,0.00019257,2]
[349687442,1737377444812,-500.0,0.00019257,2]
[349687443,1737377444822,-271.6110536,0.00019257,2]
[349687444,1737377444831,-500.0,0.00019257,2]
[349687445,1737377444841,-502.6980295,0.00019257,2]
[349687446,1737377444851,-500.0,0.00019257,2]
[349687447,1737377444862,-505.86,0.00019257,2]
[349687448,1737377444872,-500.0,0.00019257,2]
[349687449,1737377444881,-725.93,0.00019257,2]
[349687450,1737377444891,-500.0,0.00019257,2]
[349687451,1737377444901,-501.49225886,0.00019257,2]
[349687452,1737377444911,-500.0,0.00019257,2]
[349687453,1737377444920,-500.0,0.00019257,2]
[349687454,1737377444929,-272.2155689,0.00019257,2]
[349687455,1737377444939,-500.0,0.00019257,2]
[349687456,1737377444949,-500.0,0.00019257,2]
[349687457,1737377444959,-502.80962521,0.00019257,2]
[349687458,1737377444969,-500.0,0.00019257,2]
[349687460,1737377444979,-1112.19,0.00019257,2]
[349687462,1737377444989,-500.0,0.00019257,2]
[349687464,1737377444998,-500.0,0.00019257,2]
[349687466,1737377445012,-500.0,0.00019257,2]
[349687468,1737377445024,-501.94757588,0.00019257,2]
[349687469,1737377445034,-500.0,0.00019257,2]
[349687471,1737377445044,-500.0,0.00019257,2]
[349687473,1737377445054,-500.0,0.00019257,2]
[349687475,1737377445063,-500.0,0.00019257,2]
[349687477,1737377445072,-2796.22,0.00019257,2]
[349687479,1737377445082,-532.68075919,0.00019257,2]
[349687481,1737377445094,-609.50703036,0.00019257,2]
[349687483,1737377445103,-500.0,0.00019257,2]
[349687485,1737377445113,-501.31745501,0.00019257,2]
[349687487,1737377445122,-500.0,0.00019257,2]
[349687489,1737377445132,-500.0,0.00019257,2]
[349687491,1737377445142,-500.0,0.00019257,2]
[349687493,1737377445151,-500.0,0.00019257,2]
[349687495,1737377445161,-500.0,0.00019257,2]
[349687497,1737377445170,-500.0,0.00019257,2]
[349687499,1737377445180,-500.0,0.00019257,2]
[349687501,1737377445190,-502.61680204,0.00019257,2]
[349687503,1737377445199,-500.0,0.00019257,2]
[349687505,1737377445208,-500.0,0.00019257,2]
[349687507,1737377445217,-500.0,0.00019257,2]
[349687509,1737377445227,-500.0,0.00019257,2]
[349687511,1737377445236,-504.52140238,0.00019257,2]
[349687513,1737377445246,-860.7,0.00019257,2]
[349687515,1737377445258,-500.0,0.00019257,2]
[349687517,1737377445267,-500.0,0.00019257,2]
[349687519,1737377445276,-500.0,0.00019257,2]
[349687520,1737377445286,-502.73397628,0.00019257,2]
[349687522,1737377445295,-746.27,0.00019257,2]
[349687524,1737377445305,-500.0,0.00019257,2]
[349687526,1737377445314,-500.0,0.00019257,2]
[349687528,1737377445323,-500.0,0.00019257,2]
[349687530,1737377445332,-501.6975735,0.00019257,2]
[349687532,1737377445341,-500.0,0.00019257,2]
[349687534,1737377445351,-500.0,0.00019257,2]
[349687536,1737377445449,-500.0,0.00019257,2]
[349687537,1737377445471,-500.0,0.00019257,2]
[349687538,1737377445480,-500.0,0.00019257,2]
[349687539,1737377445490,-500.0,0.00019257,2]
[349687540,1737377445499,-500.0,0.00019257,2]
[349687541,1737377445513,-500.0,0.00019257,2]
[349687542,1737377445522,-500.0,0.00019257,2]
[349687543,1737377445532,-500.0,0.00019257,2]
[349687544,1737377445542,-500.0,0.00019257,2]
[349687545,1737377445552,-656.76,0.00019257,2]
[349687546,1737377445562,-500.0,0.00019257,2]
[349687547,1737377445572,-519.46129781,0.00019257,2]
[349687548,1737377445581,-500.0,0.00019257,2]
[349687549,1737377445591,-500.0,0.00019257,2]
[349687550,1737377445600,-506.22261296,0.00019257,2]
[349687552,1737377445610,-500.0,0.00019257,2]
[349687553,1737377445620,-500.0,0.00019257,2]
[349687554,1737377445630,-500.0,0.00019257,2]
[349687555,1737377445639,-500.0,0.00019257,2]
[349687556,1737377445648,-502.17166038,0.00019257,2]
[349687557,1737377445658,-500.0,0.00019257,2]
[349687558,1737377445668,-500.0,0.00019257,2]
[349687559,1737377445678,-844.35,0.00019257,2]
[349687561,1737377445687,-500.0,0.00019257,2]
[349687562,1737377445696,-500.0,0.00019257,2]
[349687563,1737377445707,-500.0,0.00019257,2]
[349687564,1737377445716,-500.0,0.00019257,2]
[349687565,1737377445726,-502.83657458,0.00019257,2]
[349687566,1737377445735,-500.0,0.00019257,2]
[349687567,1737377445744,-500.0,0.00019257,2]
[349687568,1737377445756,-500.0,0.00019257,2]
[349687569,1737377445765,-500.0,0.00019257,2]
[349687570,1737377445774,-594.0887175,0.00019257,2]
[349687571,1737377445784,-500.0,0.00019257,2]
[349687572,1737377445793,-504.02598831,0.00019257,2]
[349687573,1737377445802,-500.0,0.00019257,2]
[349687574,1737377445811,-500.0,0.00019257,2]
[349687575,1737377445820,-504.71263184,0.00019257,2]
[349687576,1737377445830,-638.61574779,0.00019257,2]
[349687577,1737377445840,-502.69977291,0.00019257,2]
[349687578,1737377445850,-500.0,0.00019257,2]
[349687579,1737377445861,-505.63428779,0.00019257,2]
[349687580,1737377445870,-500.0,0.00019257,2]
[349687581,1737377445879,-500.0,0.00019257,2]
[349687582,1737377445889,-500.0,0.00019257,2]
[349687583,1737377445899,-503.25574537,0.00019257,2]
[349687584,1737377445908,-500.0,0.00019257,2]
[349687585,1737377445918,-502.45364544,0.00019257,2]
[349687586,1737377445927,-500.0,0.00019257,2]
[349687587,1737377445937,-500.0,0.00019257,2]
[349687588,1737377445947,-502.16023897,0.00019257,2]
[349687589,1737377445956,-500.0,0.00019257,2]
[349687590,1737377445966,-500.0,0.00019257,2]
[349687591,1737377445975,-500.0,0.00019257,2]
[349687592,1737377445985,-500.0,0.00019257,2]
[349687593,1737377445995,-505.88303691,0.00019257,2]
[349687594,1737377446007,-554.98,0.00019257,2]
[349687595,1737377446020,-545.11420843,0.00019257,2]
[349687596,1737377446030,-506.77954563,0.00019257,2]
[349687597,1737377446039,-500.0,0.00019257,2]
[349687598,1737377446049,-500.0,0.00019257,2]
[349687599,1737377446058,-500.80737165,0.00019257,2]
[349687600,1737377446069,-706.13,0.00019257,2]
[349687601,1737377446078,-500.0,0.00019257,2]
[349687602,1737377446089,-500.0,0.00019257,2]
[349687603,1737377446099,-500.0,0.00019257,2]
[349687604,1737377446110,-500.0,0.00019257,2]
[349687605,1737377446119,-700.5,0.00019257,2]
[349687606,1737377446130,-500.0,0.00019257,2]
[349687607,1737377446140,-500.0,0.00019257,2]
[349687608,1737377446150,-500.0,0.00019257,2]
[349687609,1737377446159,-500.0,0.00019257,2]
[349687610,1737377446168,-500.0,0.00019257,2]
[349687611,1737377446177,-500.0,0.00019257,2]
[349687612,1737377446187,-500.0,0.00019257,2]
[349687613,1737377446196,-500.0,0.00019257,2]
[349687614,1737377446206,-817.82,0.00019257,2]
[349687615,1737377446215,-500.0,0.00019257,2]
[349687616,1737377446225,-501.54594128,0.00019257,2]
[349687617,1737377446235,-500.0,0.00019257,2]
[349687618,1737377446244,-500.36168689,0.00019257,2]
[349687619,1737377446254,-500.0,0.00019257,2]
[349687620,1737377446264,-500.0,0.00019257,2]
[349687622,1737377446273,-500.0,0.00019257,2]
[349687624,1737377446282,-500.0,0.00019257,2]
[349687626,1737377446292,-500.86611863,0.00019257,2]
[349687628,1737377446301,-506.64942413,0.00019257,2]
[349687630,1737377446311,-500.0,0.00019257,2]
[349687632,1737377446320,-840.73,0.00019257,2]
[349687634,1737377446329,-503.53711354,0.00019257,2]
[349687636,1737377446339,-502.4928164,0.00019257,2]
[349687638,1737377446348,-500.0,0.00019257,2]
[349687640,1737377446358,-505.07189131,0.00019257,2]
[349687641,1737377446367,-504.29476762,0.00019257,2]
[349687643,1737377446377,-500.0,0.00019257,2]
[349687645,1737377446386,-978.26,0.00019257,2]
[349687647,1737377446395,-501.60137919,0.00019257,2]
[349687649,1737377446404,-501.0404453,0.00019257,2]
[349687651,1737377446413,-503.15321558,0.00019257,2]
[349687653,1737377446422,-807.37,0.00019257,2]
[349687655,1737377446431,-498.95403899,0.00019257,2]
[349687657,1737377446440,-500.0,0.00019257,2]
[349687659,1737377446450,-507.015695,0.00019257,2]
[349687661,1737377446459,-617.01895277,0.00019257,2]
[349687663,1737377446468,-500.0,0.00019257,2]
[349687665,1737377446477,-535.23,0.00019257,2]
[349687667,1737377446486,-500.0,0.00019257,2]
[349687669,1737377446495,-500.0,0.00019257,2]
[349687671,1737377446506,-500.0,0.00019257,2]
[349687673,1737377446514,-911.36,0.00019257,2]
[349687675,1737377446523,-502.35403155,0.00019257,2]
[349687677,1737377446532,-627.08728379,0.00019257,2]
[349687679,1737377446541,-500.0,0.00019257,2]
[349687681,1737377446550,-500.0,0.00019257,2]
[349687683,1737377446560,-451.58290346,0.00019257,2]
[349687685,1737377446569,-918.51,0.00019257,2]
[349687687,1737377446578,-314.21108855,0.00019257,2]
[349687688,1737377446588,-500.0,0.00019257,2]
[349687691,1737377446597,-761.42,0.00019257,2]
[349687693,1737377446606,-500.0,0.00019257,2]
[349687695,1737377446616,-500.0,0.00019257,2]
[349687696,1737377446625,-500.0,0.00019257,2]
[349687698,1737377446634,-2935.79,0.00019257,2]
[349687700,1737377446643,-500.0,0.00019257,2]
[349687702,1737377446652,-500.0,0.00019257,2]
[349687704,1737377446661,-500.0,0.00019257,2]
[349687706,1737377446670,-4234.6,0.00019257,2]
[349687708,1737377446679,-500.0,0.00019257,2]
[349687710,1737377446689,-766.29,0.00019257,2]
[349687712,1737377446699,-727.87,0.00019257,2]
[349687714,1737377446709,-500.0,0.00019257,2]
[349687716,1737377446719,-200.38798611,0.00019257,2]
[349687718,1737377446728,-3864.35,0.00019257,2]
[349687720,1737377446737,-500.0,0.00019257,2]
[349687722,1737377446747,-500.0,0.00019257,2]
[349687724,1737377446758,-500.0,0.00019257,2]
[349687726,1737377446768,-500.0,0.00019257,2]